fUSD/lending_fUSD_20250211
["ID","MTS","AMOUNT","RATE_DAILY","PERIOD"]
[352697224,1739249435730,-1717.96,0.00011089,2]
[352697225,1739249435739,-500.0,0.00011089,2]
[352697226,1739249435748,-1007.49,0.00011089,2]
[352697227,1739249435758,-1632.67,0.00011089,2]
[352697228,1739249435767,-500.0,0.00011089,2]
[352697229,1739249435776,-592.11,0.00011089,2]
[352697230,1739249435787,-2051.59,0.00011089,2]
[352697231,1739249435796,-1090.31,0.00011089,2]
[352697232,1739249435805,-500.0,0.00011089,2]
[352697233,1739249435814,-1633.49,0.00011089,2]
[352697234,1739249435823,-670.83,0.00011089,2]
[352697235,1739249435832,-500.0,0.00011089,2]
[352697236,1739249435841,-1600.61,0.00011089,2]
[352697237,1739249435850,-500.0,0.00011089,2]
[352697238,1739249435859,-500.0,0.00011089,2]
[352697239,1739249435867,-500.0,0.00011089,2]
[352697240,1739249435876,-1819.1,0.00011089,2]
[352697241,1739249435885,-500.0,0.00011089,2]
[352697242,1739249435895,-1572.88,0.00011089,2]
[352697243,1739249435904,-788.69,0.00011089,2]
[352697244,1739249435913,-500.0,0.00011089,2]
[352697245,1739249435922,-2776.43,0.00011089,2]
[352697246,1739249435931,-500.0,0.00011089,2]
[352697247,1739249435940,-500.0,0.00011089,2]
[352697248,1739249435949,-1503.64,0.00011089,2]
[352697249,1739249435959,-1298.42,0.00011089,2]
[352697250,1739249435968,-5870.09,0.00011089,2]
[352697251,1739249435977,-500.0,0.00011089,2]
[352697252,1739249435986,-2656.59,0.00011089,2]
[352697253,1739249435995,-500.0,0.00011089,2]
[352697254,1739249436004,-1386.73,0.00011089,2]
[352697255,1739249436013,-500.0,0.00011089,2]
[352697256,1739249436022,-1118.13,0.00011089,2]
[352697257,1739249436032,-2325.3,0.00011089,2]
[352697258,1739249436041,-2857.43,0.00011089,2]
[352697259,1739249436050,-1388.55,0.00011089,2]
[352697260,1739249436060,-1879.24,0.00011089,2]
[352697261,1739249436069,-2445.23,0.00011089,2]
[352697262,1739249436078,-996.88,0.00011089,2]
[352697263,1739249436087,-2050.26,0.00011089,2]
[352697264,1739249436096,-500.0,0.00011089,2]
[352697265,1739249436106,-2607.3,0.00011089,2]
[352697266,1739249436115,-500.0,0.00011089,2]
[352697267,1739249436125,-4224.7,0.00011089,2]
[352697268,1739249436134,-1065.53,0.00011089,2]
[352697269,1739249436143,-2119.69,0.00011089,2]
[352697270,1739249436152,-500.0,0.00011089,2]
[352697271,1739249436162,-1049.13,0.00011089,2]
[352697272,1739249436171,-500.0,0.00011089,2]
[352697273,1739249436181,-202.35449996,0.00011089,2]
[352697274,1739249436192,-1809.53,0.00011089,2]
[352697275,1739249436203,-806.35,0.00011089,2]
[352697276,1739249436212,-1085.45,0.00011089,2]
[352697277,1739249436221,-2119.94,0.00011089,2]
[352697278,1739249436232,-500.0,0.00011089,2]
[352697279,1739249436241,-535.66,0.00011089,2]
[352697280,1739249436251,-1604.62,0.00011089,2]
[352697281,1739249436260,-809.71,0.00011089,2]
[352697282,1739249436271,-2639.05,0.00011089,2]
[352697283,1739249436280,-2588.73,0.00011089,2]
[352697284,1739249436290,-500.0,0.00011089,2]
[352697285,1739249436300,-1889.3,0.00011089,2]
[352697286,1739249436309,-209.28562947,0.00011089,2]
[352697287,1739249436319,-500.0,0.00011089,2]
[352697288,1739249436328,-420.57913844,0.00011089,2]
[352697289,1739249436337,-500.0,0.00011089,2]
[352697290,1739249436346,-581.53,0.00011089,2]
[352697291,1739249436355,-500.0,0.00011089,2]
[352697292,1739249436365,-500.0,0.00011089,2]
[352697293,1739249436374,-500.0,0.00011089,2]
[352697294,1739249436383,-1813.28,0.00011089,2]
[352697295,1739249436392,-1076.46,0.00011089,2]
[352697296,1739249436401,-500.0,0.00011089,2]
[352697297,1739249436410,-502.85181663,0.0001109,2]
[352697298,1739249436419,-500.79937832,0.0001109,2]
[352697299,1739249436428,-609.0935578,0.0001109,2]
[352697300,1739249436437,-508.42475465,0.0001109,2]
[352697301,1739249436446,-501.72814391,0.0001109,2]
[352697302,1739249436455,-501.12727757,0.0001109,2]
[352697303,1739249436465,-228.45327663,0.0001109,2]
[352697304,1739249436474,-355.43934401,0.0001109,2]
[352697305,1739249436483,-502.10767444,0.0001109,2]
[352697306,1739249436492,-501.61561555,0.0001109,2]
[352697307,1739249436502,-501.05469567,0.0001109,2]
[352697308,1739249436511,-501.21266978,0.0001109,2]
[352697309,1739249436520,-502.43468983,0.0001109,2]
[352697310,1739249436529,-514.01,0.0001109,2]
[352697311,1739249436539,-958.66,0.0001109,2]
[352697312,1739249436548,-500.0,0.0001109,2]
[352697313,1739249436557,-927.37,0.0001109,2]
[352697314,1739249436567,-920.15,0.0001109,2]
[352697315,1739249436575,-1067.45,0.0001109,2]
[352697316,1739249436584,-795.05,0.0001109,2]
[352697317,1739249436593,-500.0,0.0001109,2]
[352697318,1739249436602,-1154.34,0.0001109,2]
[352697319,1739249436611,-523.88,0.0001109,2]
[352697320,1739249436620,-1202.06,0.0001109,2]
[352697321,1739249436629,-1222.37,0.0001109,2]
[352697322,1739249436638,-500.0,0.0001109,2]
[352697323,1739249436647,-500.0,0.0001109,2]
[352697324,1739249436656,-918.43,0.0001109,2]
[352697325,1739249436666,-500.0,0.0001109,2]
[352697326,1739249436675,-500.0,0.0001109,2]
[352697327,1739249436684,-500.0,0.0001109,2]
[352697328,1739249436693,-500.0,0.0001109,2]
[352697329,1739249436703,-151.0,0.0001109,2]
[352697330,1739249436712,-151.0,0.0001109,2]
[352697331,1739249436721,-151.0,0.0001109,2]
[352697332,1739249436730,-151.0,0.0001109,2]
[352697333,1739249436740,-151.0,0.0001109,2]
[352697334,1739249436749,-151.0,0.0001109,2]
[352697335,1739249436758,-151.0,0.0001109,2]
[352697336,1739249436767,-151.0,0.0001109,2]
[352697337,1739249436776,-151.0,0.0001109,2]
[352697338,1739249436785,-151.0,0.0001109,2]
[352697339,1739249436799,-151.0,0.0001109,2]
[352697340,1739249436808,-151.0,0.0001109,2]
[352697341,1739249436818,-151.0,0.0001109,2]
[352697342,1739249436827,-151.0,0.0001109,2]
[352697343,1739249436836,-151.0,0.0001109,2]
[352697344,1739249436845,-151.0,0.0001109,2]
[352697345,1739249436854,-151.0,0.0001109,2]
[352697346,1739249436864,-151.0,0.0001109,2]
[352697347,1739249436873,-151.0,0.0001109,2]
[352697348,1739249436882,-151.0,0.0001109,2]
[352697349,1739249436891,-248.51264491,0.0001109,2]
[352697350,1739249436901,-4479.83286485,0.00011099,2]
[352697351,1739249436910,-4678.94646517,0.00011099,2]
[352697352,1739249436919,-203.7220096,0.00011109,2]
[352697353,1739249436929,-4000.0,0.0001111,2]
[352697354,1739249436938,-2640.28598504,0.00011118,2]
[352697355,1739249437281,-384.33454035,0.00011118,2]
[352697356,1739249437300,-659.83463373,0.00011118,2]
[352697361,1739249438044,-500.0,0.00011088,2]
[352697362,1739249438053,-500.0,0.00011089,2]
[352697363,1739249438063,-810.58197175,0.00011118,2]
[352697364,1739249438074,-1236.07694267,0.00011118,2]
[352697365,1739249438085,-450.95372915,0.00011118,2]
[352697366,1739249438096,-301.91055826,0.00011118,2]
[352697367,1739249438107,-5200.0,0.00011118,2]
[352697368,1739249438118,-5006.94884047,0.00011118,2]
[352697369,1739249438136,-7987.32486607,0.00011118,2]
[352697370,1739249438147,-14366.08392074,0.00011118,2]
[352697371,1739249438157,-500.0,0.00011119,2]
[352697373,1739249438167,-2861.82,0.00011119,2]
[352697375,1739249438176,-1372.15,0.00011119,2]
[352697376,1739249438185,-895.02,0.00011119,2]
[352697378,1739249438197,-1251.21,0.00011119,2]
[352697380,1739249438207,-3096.07,0.00011119,2]
[352697382,1739249438216,-500.0,0.00011119,2]
[352697384,1739249438225,-1172.74,0.00011119,2]
[352697386,1739249438234,-530.26,0.00011119,2]
[352697389,1739249438244,-1506.0,0.00011119,2]
[352697391,1739249438254,-1189.44,0.00011119,2]
[352697392,1739249438264,-500.0,0.00011119,2]
[352697394,1739249438274,-1968.48,0.00011119,2]
[352697396,1739249438283,-1637.29,0.00011119,2]
[352697397,1739249438294,-1882.73,0.00011119,2]
[352697399,1739249438303,-1754.51,0.00011119,2]
[352697401,1739249438313,-3451.18,0.00011119,2]
[352697403,1739249438321,-5207.0,0.00011119,2]
[352697405,1739249438330,-500.0,0.00011119,2]
[352697406,1739249438340,-1364.36,0.00011119,2]
[352697407,1739249438348,-1280.57,0.00011119,2]
[352697408,1739249438358,-2839.19,0.00011119,2]
[352697409,1739249438367,-500.0,0.00011119,2]
[352697410,1739249438376,-535.61,0.00011119,2]
[352697411,1739249438386,-1428.74,0.00011119,2]
[352697412,1739249438395,-151.0,0.00011119,2]
[352697413,1739249438403,-151.243641,0.00011119,2]
[352697414,1739249438413,-237349.50376427,0.00011119,3]
[352697415,1739249438424,-437.22126349,0.00011119,3]
[352697416,1739249438435,-5895.68587196,0.00011119,3]
[352697417,1739249438446,-293.23478148,0.00011119,3]
[352697489,1739249439772,-500.0,0.00011088,2]
[352697490,1739249439782,-771.99,0.00011089,2]
[352697491,1739249439791,-5668.01,0.00011119,3]
[352697492,1739249439815,-30789.35792431,0.00011119,3]
[352697493,1739249439927,-464.86247294,0.00011089,2]
[352697494,1739249439938,-124.27354699,0.00011089,2]
[352697495,1739249439947,-1780.17017979,0.00011119,3]
[352697496,1739249439979,-519.20355544,0.00011089,2]
[352697497,1739249439990,-2347.80644456,0.00011089,2]
[352697498,1739249439999,-32230.89119513,0.00011119,3]
[352697499,1739249440091,-2353.72,0.00011088,2]
[352697500,1739249440100,-7812.90027271,0.00011119,3]
[352697501,1739249440110,-402.82827281,0.00011119,3]
[352697502,1739249440121,-4912.72242737,0.00011119,3]
[352697503,1739249440132,-302.0475,0.00011119,3]
[352697504,1739249440147,-45024.42807082,0.00011119,3]
[352697505,1739249440158,-6400.80293767,0.00011119,3]
[352697542,1739249442894,-619.819988,0.00011088,2]
[352697543,1739249442905,-221.400012,0.00011088,2]
[352697544,1739249442914,-72.25139954,0.00011119,2]
[352697545,1739249442941,-1465.34860046,0.00011119,2]
[352697546,1739249442950,-2902.22380354,0.00011119,3]
[352697547,1739249443051,-2700.0,0.00011119,3]
[352697548,1739249443063,-3502.93905501,0.00011119,3]
[352697549,1739249443164,-3228.98927153,0.00011119,3]
[352697574,1739249445913,-1317.72,0.00011088,2]
[352697575,1739249445922,-3612.58487223,0.00011119,3]
[352697576,1739249445933,-6983.2881696,0.00011119,3]
[352697577,1739249445972,-1199.08,0.00011089,2]
[352697578,1739249445981,-69121.25727671,0.00011119,3]
[352697579,1739249445992,-1039.449305,0.00011119,3]
[352697580,1739249446033,-379875.00224065,0.00011119,3]
[352697581,1739249446148,-620.35000006,0.00011119,3]
[352697582,1739249446159,-252.34715178,0.00011119,3]
[352697583,1739249446207,-2377.9596257,0.00011119,3]
[352697587,1739249542830,-222.1248,8.699e-05,2]
[352697588,1739249542855,-808.1058,8.699e-05,2]
[352697589,1739249549913,3969.7694,8.699e-05,2]
[352697590,1739249574680,-6973.0381,8.256e-05,2]
[352697591,1739249596850,-1369.1165,8.699e-05,2]
[352697592,1739249596876,-1564.125,8.699e-05,2]
[352697593,1739249596901,-4079.17933454,8.699e-05,2]
[352697595,1739249704004,-300.0,8.835e-05,2]
[352697596,1739249704032,-3421.5054,8.836e-05,2]
[352697597,1739249704059,-305.2994,8.836e-05,2]
[352697598,1739249704086,-18452.0695,8.836e-05,2]
[352697599,1739249704113,-2274.8728,8.836e-05,2]
[352697600,1739249704140,-5246.2529,8.836e-05,2]
[352697603,1739249952267,1853.80681232,8e-05,2]
[352697604,1739250003110,2933.53999993,8.212e-05,2]
[352697605,1739250596908,600.0,0.0002,120]
[352697613,1739250632089,-945.88,8.219e-05,2]
[352697614,1739250632099,-150.0,8.493e-05,2]
[352697615,1739250632108,-150.0,8.693e-05,2]
[352697616,1739250632118,-1000.0,8.835e-05,2]
[352697617,1739250632127,-150.0,8.835e-05,2]
[352697618,1739250632136,-2790.18402337,8.836e-05,2]
[352697619,1739250632147,-3700.0,8.836e-05,2]
[352697620,1739250632158,-2888.73837663,8.836e-05,2]
[352697621,1739250632167,-1256.2999,8.836e-05,2]
[352697622,1739250632176,-2822.0445,8.836e-05,2]
[352697623,1739250632186,-859.7676,8.836e-05,2]
[352697624,1739250632195,-544.4851,8.836e-05,2]
[352697625,1739250632204,-826.5528,8.836e-05,2]
[352697626,1739250632213,-8806.4471,8.836e-05,2]
[352697627,1739250632223,-502.4849,8.836e-05,2]
[352697628,1739250632231,-2625.3429,8.836e-05,2]
[352697629,1739250632240,-2290.0239,8.836e-05,2]
[352697630,1739250632249,-792.37999515,8.836e-05,2]
[352697631,1739250632259,-3104.27952186,8.836e-05,2]
[352697632,1739250632271,-990.42750928,8.836e-05,2]
[352697633,1739250632289,-317.2,8.836e-05,2]
[352697634,1739250632300,-8069.5891,8.836e-05,2]
[352697635,1739250632333,-72605.14319769,8.836e-05,2]
[352697636,1739250632344,-119656.12010717,8.836e-05,2]
[352697637,1739250632355,-750.37477044,8.836e-05,2]
[352697638,1739250632367,-35780.51409841,8.836e-05,2]
[352697639,1739250632376,-4301.8253,8.836e-05,2]
[352697640,1739250632386,-500.0,8.851e-05,2]
[352697641,1739250632395,-1000.0,8.851e-05,2]
[352697642,1739250632405,-1173.37,8.896e-05,2]
[352697643,1739250632414,-167.54,8.899e-05,2]
[352697644,1739250632423,-280.54,8.931e-05,2]
[352697645,1739250632432,-2000.0,8.956e-05,2]
[352697646,1739250632442,-9790.8691,8.973e-05,2]
[352697647,1739250632452,-5000.0,8.973e-05,2]
[352697648,1739250632461,-250.0,8.974e-05,2]
[352697649,1739250632471,-1203.42,8.989e-05,2]
[352697650,1739250632480,-629.85,8.995e-05,2]
[352697651,1739250632490,-4172.86,9.026e-05,2]
[352697652,1739250632499,-150.0,9.041e-05,2]
[352697653,1739250632509,-320.26,9.465e-05,2]
[352697655,1739250632518,-320.26,9.468e-05,2]
[352697656,1739250632527,-320.26,9.47e-05,2]
[352697658,1739250632536,-320.26,9.473e-05,2]
[352697660,1739250632546,-320.26,9.475e-05,2]
[352697662,1739250632557,-320.26,9.478e-05,2]
[352697664,1739250632566,-320.26,9.48e-05,2]
[352697665,1739250632576,-320.26,9.483e-05,2]
[352697667,1739250632585,-320.26,9.485e-05,2]
[352697669,1739250632594,-320.26,9.488e-05,2]
[352697671,1739250632604,-320.26,9.49e-05,2]
[352697673,1739250632613,-320.26,9.493e-05,2]
[352697675,1739250632622,-320.26,9.495e-05,2]
[352697677,1739250632632,-320.26,9.498e-05,2]
[352697679,1739250632646,-320.26,9.5e-05,2]
[352697681,1739250632655,-320.26,9.503e-05,2]
[352697683,1739250632664,-320.26,9.505e-05,2]
[352697685,1739250632674,-320.26,9.508e-05,2]
[352697687,1739250632685,-320.26,9.51e-05,2]
[352697689,1739250632694,-320.26,9.512e-05,2]
[352697691,1739250632703,-771.84,9.516e-05,2]
[352697692,1739250632713,-23900.0,9.6e-05,2]
[352697694,1739250632723,-2000.0,9.665e-05,2]
[352697696,1739250632732,-255.0,9.718e-05,2]
[352697697,1739250632742,-500.0,9.719e-05,2]
[352697699,1739250632751,-1000.0,9.957e-05,2]
[352697701,1739250632760,-175.36,9.964e-05,2]
[352697703,1739250632769,-6731.64,0.00010096,2]
[352697704,1739250632778,-925.53,0.00010111,2]
[352697706,1739250632787,-224.18,0.00010137,2]
[352697707,1739250632798,-333.97,0.00010191,2]
[352697708,1739250632808,-775.26,0.00010207,2]
[352697709,1739250632818,-261.16,0.00010207,2]
[352697710,1739250632827,-498.81,0.00010227,2]
[352697711,1739250632836,-495.76,0.00010227,2]
[352697712,1739250632846,-2326.38,0.00010227,2]
[352697713,1739250632856,-945.88,0.00010419,2]
[352697714,1739250632865,-300.0,0.000106,3]
[352697715,1739250632876,-985.61,0.00010612,2]
[352697716,1739250632886,-985.61,0.00010612,2]
[352697717,1739250632896,-985.61,0.00010612,2]
[352697718,1739250632906,-985.61,0.00010612,2]
[352697719,1739250632916,-985.61,0.00010612,2]
[352697720,1739250632926,-985.61,0.00010614,2]
[352697721,1739250632938,-985.61,0.00010614,2]
[352697722,1739250632947,-985.61,0.00010614,2]
[352697723,1739250632957,-433.0,0.0001069,2]
[352697724,1739250632966,-3300.0,0.00010699,2]
[352697725,1739250632975,-600.0,0.000107,3]
[352697726,1739250632984,-771.84,0.00010706,2]
[352697727,1739250632994,-151.33,0.00010727,2]
[352697728,1739250633003,-151.23,0.00010727,2]
[352697729,1739250633013,-900.0,0.000108,3]
[352697730,1739250633022,-113271.57728656,0.00010824,2]
[352697731,1739250633036,-53640.53552544,0.00010824,2]
[352697732,1739250633047,-41409.8988467,0.00010824,2]
[352697733,1739250633056,-1374.43752046,0.00010825,2]
[352697734,1739250633066,-322824.87599784,0.00010825,2]
[352697735,1739250633226,-326.83337483,8.955e-05,2]
[352697736,1739250633236,-500.0,8.955e-05,2]
[352697737,1739250633247,-177911.46243811,0.00010825,2]
[352697738,1739250633257,-1374.43752046,0.00010827,2]
[352697739,1739250633266,-32287.47724468,0.00010827,2]
[352697740,1739250633275,-1374.43752046,0.00010834,2]
[352697741,1739250633285,-1214.39736014,0.00010837,2]
[352697742,1739250633295,-7472.24682555,0.0001084,2]
[352697743,1739250633307,-493264.0916104,0.0001084,2]
[352697744,1739250633316,-200.0,0.0001084,2]
[352697745,1739250633326,-32287.47724468,0.00010844,2]
[352697746,1739250633336,-1374.43752046,0.0001085,2]
[352697747,1739250633346,-88389.17594217,0.00010851,2]
[352697748,1739250633367,-269.11659833,8.955e-05,2]
[352697749,1739250633377,-1374.79961626,0.00010851,2]
[352697750,1739250633388,-1372.6227422,0.00010851,2]
[352697751,1739250633399,-1956.94,0.00010851,2]
[352697752,1739250633424,-11536.91535681,0.00010851,2]
[352697753,1739250633436,-1132.87600634,0.00010851,2]
[352697754,1739250633447,-747.34999,0.00010851,2]
[352697755,1739250633458,-1318.42625278,0.00010851,2]
[352697770,1739250637878,-493.11,0.00010202,2]
[352697772,1739250637887,-1081.48846429,0.00010851,2]
[352697774,1739250637898,-353.43,0.00010851,2]
[352697776,1739250637912,-488.45942115,0.00010851,2]
[352697777,1739250637925,-670.435461,0.00010851,2]
[352697778,1739250637996,-2655.08960033,0.00010851,2]
[352697779,1739250638056,-1019.89467031,0.00010851,2]
[352697780,1739250638068,-818.22497873,0.00010851,2]
[352697781,1739250638080,-22424.35260003,0.00010851,2]
[352697782,1739250638089,-1214.39736014,0.00010851,2]
[352697783,1739250638098,-33516.66973482,0.00010852,2]
[352697793,1739250638313,-94051.16950357,0.00010853,2]
[352697795,1739250638327,-1016.2321986,0.00010853,2]
[352697804,1739250638395,-14247.0,0.00010853,2]
[352697806,1739250638406,-12464.40233427,0.00010853,2]
[352697809,1739250638417,-3593.88520939,0.00010853,2]
[352697818,1739250638484,-1011.86821652,0.00010853,2]
[352697858,1739250642159,-566.84138598,0.00010853,2]
[352697859,1739250642216,-39960.71396367,0.00010853,2]
[352697860,1739250642225,-137340.4811024,0.00010856,2]
[352697861,1739250642235,-32287.47724468,0.00010856,2]
[352697862,1739250642244,-41409.8988467,0.00010857,2]
[352697863,1739250642253,-383.69783458,0.00010858,2]
[352697864,1739250642265,-41409.8988467,0.00010859,2]
[352697865,1739250642279,-33516.66973482,0.00010872,2]
[352697866,1739250642293,-19560.54496116,0.00010873,2]
[352697867,1739250642306,-12726.93228352,0.00010873,2]
[352697868,1739250642315,-166912.112812,0.00010874,2]
[352697869,1739250642324,-41409.8988467,0.00010874,2]
[352697870,1739250642333,-500736.33843595,0.00010876,2]
[352697871,1739250642342,-166912.112812,0.00010877,2]
[352697872,1739250642351,-1214.39736014,0.00010879,2]
[352697873,1739250642362,-137340.4811024,0.00010882,2]
[352697874,1739250642371,-33516.66973482,0.00010885,2]
[352697875,1739250642379,-1214.39736014,0.00010887,2]
[352697876,1739250642388,-33516.66973482,0.00010894,2]
[352697877,1739250642396,-137340.4811024,0.00010896,2]
[352697878,1739250642404,-500736.33843595,0.00010898,2]
[352697879,1739250642411,-1300.0,0.000109,3]
[352697880,1739250642418,-2305.92,0.00010958,2]
[352697881,1739250642425,-912.093638,0.00010958,2]
[352697882,1739250642432,-1518.4,0.00010958,2]
[352697883,1739250642439,-1321.43,0.00010958,2]
[352697884,1739250642447,-1026.73,0.00010958,2]
[352697885,1739250642457,-1838.06,0.00010958,2]
[352697886,1739250642467,-520.4,0.00010958,2]
[352697887,1739250642476,-994.35,0.00010958,2]
[352697888,1739250642485,-855.97882,0.00010958,2]
[352697889,1739250642495,-1940.58,0.00010958,2]
[352697890,1739250642504,-1535.32,0.00010958,2]
[352697891,1739250642514,-1212.29,0.00010958,2]
[352697892,1739250642523,-664.32,0.00010958,2]
[352697893,1739250642532,-500.0,0.00010958,2]
[352697894,1739250642541,-1142.24,0.00010958,2]
[352697895,1739250642552,-613.57,0.00010958,2]
[352697896,1739250642561,-1415.44,0.00010958,2]
[352697897,1739250642570,-2337.57,0.00010958,2]
[352697898,1739250642579,-2581.03,0.00010958,2]
[352697899,1739250642588,-2314.39,0.00010958,2]
[352697900,1739250642598,-784.45,0.00010958,2]
[352697902,1739250642607,-2326.26,0.00010958,2]
[352697904,1739250642616,-1666.57,0.00010958,2]
[352697905,1739250642626,-2137.62,0.00010958,2]
[352697906,1739250642635,-817.64,0.00010958,2]
[352697907,1739250642646,-2910.21,0.00010958,2]
[352697908,1739250642656,-1673.73,0.00010958,2]
[352697910,1739250642666,-2252.75,0.00010958,2]
[352697913,1739250642675,-2037.2,0.00010958,2]
[352697915,1739250642684,-1423.58,0.00010958,2]
[352697918,1739250642694,-3288.35,0.00010958,2]
[352697920,1739250642703,-6743.59,0.00010958,2]
[352697921,1739250642713,-1685.93,0.00010958,2]
[352697922,1739250642724,-2259.46,0.00010958,2]
[352697923,1739250642733,-2672.27,0.00010958,2]
[352697924,1739250642742,-2966.77,0.00010958,2]
[352697925,1739250642751,-1318.65,0.00010958,2]
[352697926,1739250642760,-2716.9,0.00010958,2]
[352697927,1739250642769,-1540.01,0.00010958,2]
[352697928,1739250642778,-4869.53,0.00010958,2]
[352697931,1739250642787,-3646.89,0.00010958,2]
[352697932,1739250642797,-426.01844767,0.00010958,2]
[352697934,1739250642808,-978.58,0.00010958,2]
[352697936,1739250642818,-1074.13,0.00010958,2]
[352697938,1739250642828,-2364.94,0.00010958,2]
[352697940,1739250642838,-1399.13,0.00010958,2]
[352697942,1739250642847,-724.27,0.00010958,2]
[352697943,1739250642856,-544.88,0.00010958,2]
[352697944,1739250642865,-535.72,0.00010958,2]
[352697945,1739250642875,-2035.19,0.00010958,2]
[352697946,1739250642884,-2908.54,0.00010958,2]
[352697947,1739250642893,-500.0,0.00010958,2]
[352697948,1739250642903,-1488.4,0.00010958,2]
[352697949,1739250642912,-2749.95,0.00010958,2]
[352697950,1739250642921,-500.0,0.00010958,2]
[352697951,1739250642931,-953.06,0.00010958,2]
[352697952,1739250642941,-2362.65,0.00010959,2]
[352697953,1739250642950,-150.0,0.00010976,2]
[352697954,1739250642959,-4133.46417822,0.00011,2]
[352697955,1739250642969,-1037.6722638,0.00011002,2]
[352697956,1739250642978,-1273.781,0.00011005,2]
[352697957,1739250642987,-2024.0,0.00011005,2]
[352697958,1739250642996,-638.0,0.00011005,2]
[352697959,1739250643006,-150.0,0.00011005,2]
[352697960,1739250643015,-1827.0,0.00011005,2]
[352697961,1739250643024,-783.0,0.00011005,2]
[352697962,1739250643034,-907.0,0.00011005,2]
[352697963,1739250643043,-1263.0,0.00011005,2]
[352697964,1739250643054,-2954.0,0.00011005,2]
[352697965,1739250643063,-539.0,0.00011005,2]
[352697966,1739250643072,-1008.0,0.00011005,2]
[352697967,1739250643081,-195.17,0.00011005,2]
[352697968,1739250643091,-3914.0,0.00011005,2]
[352697969,1739250643100,-1109.0,0.00011005,2]
[352697970,1739250643109,-191029.29484877,0.0001101,2]
[352697971,1739250643118,-4000.0,0.0001101,2]
[352697972,1739250643127,-150.0,0.00011081,2]
[352697973,1739250643136,-500.0,0.00011087,2]
[352697974,1739250643144,-500.0,0.00011087,2]
[352697975,1739250643153,-819.03,0.00011087,2]
[352697976,1739250643162,-500.0,0.00011087,2]
[352697977,1739250643171,-500.0,0.00011087,2]
[352697978,1739250643180,-500.0,0.00011087,2]
[352697979,1739250643189,-500.0,0.00011087,2]
[352697980,1739250643198,-500.0,0.00011087,2]
[352697981,1739250643207,-500.0,0.00011087,2]
[352697982,1739250643216,-508.50823987,0.00011087,2]
[352697983,1739250643225,-500.0,0.00011087,2]
[352697984,1739250643234,-500.0,0.00011087,2]
[352697985,1739250643242,-504.119199,0.00011087,2]
[352697986,1739250643251,-502.33025351,0.00011087,2]
[352697987,1739250643260,-500.0,0.00011087,2]
[352697988,1739250643269,-500.0,0.00011087,2]
[352697989,1739250643278,-505.1164005,0.00011087,2]
[352697990,1739250643286,-502.06242696,0.00011087,2]
[352697991,1739250643295,-593.17,0.00011087,2]
[352697992,1739250643306,-500.0,0.00011087,2]
[352697993,1739250643315,-500.0,0.00011087,2]
[352697994,1739250643324,-500.0,0.00011087,2]
[352697995,1739250643332,-500.0,0.00011087,2]
[352697996,1739250643341,-500.0,0.00011087,2]
[352697997,1739250643350,-500.0,0.00011087,2]
[352697998,1739250643360,-500.0,0.00011087,2]
[352697999,1739250643369,-500.0,0.00011087,2]
[352698000,1739250643379,-500.0,0.00011087,2]
[352698001,1739250643388,-500.0,0.00011087,2]
[352698002,1739250643398,-1281.55,0.00011087,2]
[352698003,1739250643407,-505.84377249,0.00011087,2]
[352698004,1739250643416,-500.0,0.00011087,2]
[352698005,1739250643426,-690.52,0.00011087,2]
[352698006,1739250643435,-500.0,0.00011087,2]
[352698007,1739250643444,-500.0,0.00011087,2]
[352698008,1739250643453,-500.0,0.00011087,2]
[352698009,1739250643463,-496.28432792,0.00011087,2]
[352698010,1739250643472,-1082.82,0.00011087,2]
[352698011,1739250643481,-500.0,0.00011087,2]
[352698012,1739250643491,-500.0,0.00011087,2]